fUSD/lending_fUSD_20251228
["ID","MTS","AMOUNT","RATE_DAILY","PERIOD"]
[399960779,1766945708899,-1690.96788148,0.00042998,120]
[399960780,1766945708926,-930.78823438,0.00042998,120]
[399960781,1766945708954,-453.45710354,0.00042998,120]
[399960782,1766945708981,-309.33981229,0.00042998,120]
[399960783,1766945709010,-150.02,0.00042998,120]
[399960784,1766945709038,-150.02,0.00042998,120]
[399960785,1766945709070,-150.02,0.00042998,120]
[399960786,1766945709101,-150.02,0.00042998,120]
[399960787,1766945709129,-150.02,0.00042998,120]
[399960788,1766945709157,-314.96142,0.00042998,60]
[399960789,1766945709185,-290.07134,0.00042998,60]
[399960790,1766945709213,-314.96142,0.00042998,60]
[399960791,1766945709241,-290.07134,0.00042998,60]
[399960792,1766945709269,-314.96142,0.00042998,60]
[399960793,1766945709301,-290.07134,0.00042998,60]
[399960794,1766945709328,-314.96142,0.00042998,60]
[399960795,1766945709355,-290.07134,0.00042998,60]
[399960796,1766945709381,-314.96142,0.00042998,60]
[399960797,1766945709406,-290.07134,0.00042998,60]
[399960798,1766945709432,-150.02,0.00042998,120]
[399960799,1766945709458,-150.02,0.00042998,120]
[399960800,1766945709484,-150.02,0.00042998,120]
[399960801,1766945709511,-150.02,0.00042998,120]
[399960802,1766945709536,-150.02,0.00042998,120]
[399960803,1766945709562,-150.02,0.00042998,120]
[399960804,1766945709589,-150.02,0.00042998,120]
[399960805,1766945709614,-150.02,0.00042998,120]
[399960806,1766945709640,-150.02,0.00042998,120]
[399960807,1766945709667,-150.02,0.00042998,120]
[399960808,1766945709695,-150.02,0.00042998,120]
[399960809,1766945709721,-150.02,0.00042998,120]
[399960810,1766945709747,-150.02,0.00042998,120]
[399960811,1766945709773,-150.02,0.00042998,120]
[399960812,1766945709799,-150.02,0.00042998,120]
[399960813,1766945709826,-150.02,0.00042998,120]
[399960814,1766945709854,-150.02,0.00042998,120]
[399960815,1766945709879,-150.02,0.00042998,120]
[399960816,1766945709905,-150.02,0.00042998,120]
[399960817,1766945709934,-150.02,0.00042998,120]
[399960818,1766945709960,-150.02,0.00042998,120]
[399960819,1766945709986,-150.02,0.00042998,120]
[399960820,1766945710012,-150.02,0.00042998,120]
[399960821,1766945710037,-150.02,0.00042998,120]
[399960822,1766945710064,-150.02,0.00042998,120]
[399960823,1766945710092,-150.02,0.00042998,120]
[399960824,1766945710120,-150.02,0.00042998,120]
[399960825,1766945710147,-150.02,0.00042998,120]
[399960826,1766945710174,-150.02,0.00042998,120]
[399960827,1766945710202,-293.02,0.00042998,120]
[399960828,1766945710230,-150.02,0.00042998,120]
[399960829,1766945710257,-150.02,0.00042998,120]
[399960830,1766945710286,-150.02,0.00042998,120]
[399960831,1766945710313,-150.02,0.00042998,120]
[399960832,1766945710340,-150.02,0.00042998,120]
[399960833,1766945710366,-150.02,0.00042998,120]
[399960834,1766945710527,-150.02,0.00042998,120]
[399960835,1766945710553,-150.02,0.00042998,120]
[399960836,1766945710581,-150.02,0.00042998,120]
[399960837,1766945710608,-150.02,0.00042998,120]
[399960838,1766945710637,-150.02,0.00042998,120]
[399960839,1766945710663,-150.02,0.00042998,120]
[399960840,1766945710689,-150.02,0.00042998,120]
[399960841,1766945710715,-150.02,0.00042998,120]
[399960842,1766945710742,-150.02,0.00042998,120]
[399960843,1766945710767,-150.02,0.00042998,120]
[399960844,1766945710792,-150.02,0.00042998,120]
[399960845,1766945710818,-150.02,0.00042998,120]
[399960846,1766945710844,-150.02,0.00042998,120]
[399960847,1766945710871,-150.02,0.00042998,120]
[399960848,1766945710901,-150.02,0.00042998,120]
[399960849,1766945710927,-150.02,0.00042998,120]
[399960850,1766945710952,-150.02,0.00042998,120]
[399960851,1766945710979,-150.02,0.00042998,120]
[399960852,1766945711008,-150.02,0.00042998,120]
[399960853,1766945711036,-150.02,0.00042998,120]
[399960854,1766945711063,-150.02,0.00042998,120]
[399960855,1766945711090,-150.02,0.00042998,120]
[399960856,1766945711116,-150.02,0.00042998,120]
[399960857,1766945711145,-150.02,0.00042998,120]
[399960858,1766945711174,-150.02,0.00042998,120]
[399960859,1766945711202,-150.02,0.00042998,120]
[399960860,1766945711230,-150.02,0.00042998,120]
[399960861,1766945711259,-150.02,0.00042998,120]
[399960862,1766945711288,-150.02,0.00042998,120]
[399960863,1766945711317,-150.02,0.00042998,120]
[399960864,1766945711348,-150.02,0.00042998,120]
[399960865,1766945711377,-150.02,0.00042998,120]
[399960866,1766945711405,-150.02,0.00042998,120]
[399960867,1766945711435,-150.02,0.00042998,120]
[399960868,1766945711463,-1500.0,0.00042998,120]
[399960869,1766945711490,-150.02,0.00042998,120]
[399960870,1766945711516,-150.02,0.00042998,120]
[399960871,1766945711543,-150.02,0.00042998,120]
[399960872,1766945711569,-150.02,0.00042998,120]
[399960873,1766945711597,-150.02,0.00042998,120]
[399960874,1766945711622,-150.02,0.00042998,120]
[399960875,1766945711649,-150.02,0.00042998,120]
[399960876,1766945711675,-150.02,0.00042998,120]
[399960877,1766945711701,-150.02,0.00042998,120]
[399960878,1766945711727,-150.02,0.00042998,120]
[399960879,1766945711753,-150.02,0.00042998,120]
[399960880,1766945711779,-150.02,0.00042998,120]
[399960881,1766945711804,-150.02,0.00042998,120]
[399960882,1766945711830,-150.02,0.00042998,120]
[399960883,1766945711855,-150.02,0.00042998,120]
[399960884,1766945711881,-150.02,0.00042998,120]
[399960885,1766945711906,-150.02,0.00042998,120]
[399960886,1766945711933,-150.02,0.00042998,120]
[399960887,1766945711961,-150.02,0.00042998,120]
[399960888,1766945711988,-150.02,0.00042998,120]
[399960889,1766945712015,-150.02,0.00042998,120]
[399960890,1766945712042,-150.02,0.00042998,120]
[399960891,1766945712068,-150.02,0.00042998,120]
[399960892,1766945712097,-150.02,0.00042998,120]
[399960893,1766945712124,-150.02,0.00042998,120]
[399960894,1766945712152,-150.02,0.00042998,120]
[399960895,1766945712179,-150.02,0.00042998,120]
[399960896,1766945712208,-150.02,0.00042998,120]
[399960897,1766945712236,-150.02,0.00042998,120]
[399960898,1766945712264,-150.02,0.00042998,120]
[399960899,1766945712296,-291.02,0.00042998,120]
[399960900,1766945712325,-1183.208131,0.00042998,120]
[399960901,1766945712354,-473.1897539,0.00042998,120]
[399960902,1766945712381,-999.999997,0.00042998,120]
[399960903,1766945712408,-297.84353439,0.00042998,91]
[399960904,1766945712435,-599.21886087,0.00042998,60]
[399960905,1766945712461,-185.46915563,0.00042998,120]
[399960906,1766945712489,-880.43967888,0.00042998,120]
[399960907,1766945712516,-624.1999889,0.00042998,120]
[399960908,1766945712542,-199.53507531,0.00042998,120]
[399960909,1766945712568,-313.40252565,0.00042998,120]
[399960910,1766945712594,-1678.86768046,0.00042998,120]
[399960911,1766945712625,-648.15860673,0.00042998,120]
[399960912,1766945712650,-474.93350846,0.00042998,120]
[399960913,1766945712676,-152.20781034,0.00042998,120]
[399960914,1766945712703,-615.54814665,0.00042998,120]
[399960915,1766945712730,-748.08179546,0.00042998,120]
[399960916,1766945712756,-915.38080117,0.00042998,120]
[399960917,1766945712784,-418.34311421,0.00042998,120]
[399960918,1766945712811,-365.2848273,0.00042998,90]
[399960919,1766945712837,-939.0583955,0.00042998,120]
[399960920,1766945712863,-192.88865281,0.00042998,120]
[399960921,1766945712890,-582.31349923,0.00042998,120]
[399960922,1766945712915,-1121.53860431,0.00042998,120]
[399960923,1766945712941,-150.22969382,0.00042998,60]
[399960924,1766945712967,-594.13058748,0.00042998,120]
[399960925,1766945712993,-198.90517692,0.00042998,120]
[399960926,1766945713020,-192.13044949,0.00042998,60]
[399960927,1766945713046,-192.28795859,0.00042998,120]
[399960928,1766945713207,-1033.77562217,0.00042998,120]
[399960929,1766945713234,-498.56184021,0.00042998,120]
[399960930,1766945713261,-763.68360569,0.00042998,120]
[399960931,1766945713288,-434.580057,0.00042998,75]
[399960932,1766945713314,-440.20145039,0.00042998,120]
[399960933,1766945713341,-1479.69663246,0.00042998,120]
[399960934,1766945713370,-289.02824645,0.00042998,120]
[399960935,1766945713397,-400320.0,0.00042998,120]
[399960936,1766945713425,-567.9790518,0.00042998,120]
[399960937,1766945713452,-507.824028,0.00042998,120]
[399960938,1766945713477,-1011.68204772,0.00042998,120]
[399960939,1766945713503,-1216.68223365,0.00042998,120]
[399960940,1766945713530,-177.46469773,0.00042998,120]
[399960941,1766945713558,-430.17222678,0.00042998,120]
[399960942,1766945713585,-276.08862525,0.00042998,120]
[399960943,1766945713611,-879.3922005,0.00042998,120]
[399960944,1766945713638,-324.97946718,0.00042998,120]
[399960945,1766945713665,-269.76126046,0.00042998,120]
[399960946,1766945713691,-267.22096647,0.00042998,120]
[399960947,1766945713717,-750.9021859,0.00042998,120]
[399960948,1766945713743,-1548.74432984,0.00042998,120]
[399960949,1766945713770,-264.21406489,0.00042998,120]
[399960950,1766945713796,-1007.17438056,0.00042998,120]
[399960951,1766945713822,-413.35495328,0.00042998,120]
[399960952,1766945713848,-733.66836737,0.00042998,120]
[399960953,1766945713874,-410.42437709,0.00042998,120]
[399960954,1766945713900,-542.69823642,0.00042998,120]
[399960955,1766945713927,-1053.31455284,0.00042998,120]
[399960956,1766945713953,-1083.76048226,0.00042998,120]
[399960957,1766945713980,-598.74204114,0.00042998,120]
[399960958,1766945714006,-266.88933546,0.00042998,120]
[399960959,1766945714033,-1879.89390871,0.00042998,120]
[399960960,1766945714059,-1212.32099485,0.00042998,120]
[399960961,1766945714086,-240.51760143,0.00042998,120]
[399960962,1766945714112,-264.85258196,0.00042998,120]
[399960963,1766945714139,-195.58889626,0.00042998,120]
[399960964,1766945714166,-267.23158744,0.00042998,120]
[399960965,1766945714194,-2711.36303807,0.00042998,120]
[399960966,1766945714223,-680.28040552,0.00042998,120]
[399960967,1766945714250,-948.63286528,0.00042998,120]
[399960968,1766945714279,-1357.85435176,0.00042998,120]
[399960969,1766945714309,-484.92482383,0.00042998,90]
[399960970,1766945714336,-565.45804696,0.00042998,120]
[399960971,1766945714365,-1061.67599783,0.00042998,120]
[399960972,1766945714392,-1020.92995874,0.00042998,120]
[399960973,1766945714420,-228.51122859,0.00042998,120]
[399960974,1766945714446,-657.07813344,0.00042998,120]
[399960975,1766945714472,-180.35172843,0.00042998,120]
[399960976,1766945714499,-1936.94027571,0.00042998,120]
[399960977,1766945714527,-645.39097617,0.00042998,120]
[399960978,1766945714552,-550.04259068,0.00042998,120]
[399960979,1766945714579,-1057.18971196,0.00042998,120]
[399960980,1766945714604,-680.84152875,0.00042998,120]
[399960981,1766945714629,-1102.95852895,0.00042998,120]
[399960982,1766945714656,-638.92768665,0.00042998,120]
[399960983,1766945714681,-506.67624515,0.00042998,120]
[399960984,1766945714707,-823.65668204,0.00042998,120]
[399960985,1766945714733,-196.46647881,0.00042998,120]
[399960986,1766945714758,-1133.46065537,0.00042998,120]
[399960987,1766945714783,-287.20731722,0.00042998,120]
[399960988,1766945714808,-174.92176553,0.00042998,120]
[399960989,1766945714835,-476.37221497,0.00042998,120]
[399960990,1766945714861,-274.11358169,0.00042998,120]
[399960991,1766945714887,-1662.10509356,0.00042998,120]
[399960992,1766945714913,-856.31530904,0.00042998,120]
[399960993,1766945714939,-331.86417229,0.00042998,120]
[399960994,1766945714967,-956.97794614,0.00042998,120]
[399960995,1766945714995,-235.90340331,0.00042998,120]
[399960996,1766945715024,-986.18789424,0.00042998,120]
[399960997,1766945715054,-449.56532879,0.00042998,120]
[399960998,1766945715083,-375.23499033,0.00042998,120]
[399960999,1766945715114,-3000.0,0.00042998,120]
[399961000,1766945715142,-3000.0,0.00042998,120]
[399961001,1766945715172,-3000.0,0.00042998,120]
[399961002,1766945715200,-3000.0,0.00042998,120]
[399961003,1766945715227,-3000.0,0.00042998,120]
[399961004,1766945715256,-3000.0,0.00042998,120]
[399961005,1766945715288,-3000.0,0.00042998,120]
[399961006,1766945715319,-3000.0,0.00042998,120]
[399961007,1766945715348,-3000.0,0.00042998,120]
[399961008,1766945715377,-3000.0,0.00042998,120]
[399961009,1766945715405,-3000.0,0.00042998,120]
[399961010,1766945715433,-3000.0,0.00042998,120]
[399961011,1766945715460,-3000.0,0.00042998,120]
[399961012,1766945715488,-3000.0,0.00042998,120]
[399961013,1766945715518,-3000.0,0.00042998,120]
[399961014,1766945715547,-3000.0,0.00042998,120]
[399961015,1766945715577,-3000.0,0.00042998,120]
[399961016,1766945715604,-3000.0,0.00042998,120]
[399961017,1766945715631,-3000.0,0.00042998,120]
[399961018,1766945715659,-3000.0,0.00042998,120]
[399961019,1766945715686,-3000.0,0.00042998,120]
[399961020,1766945715713,-3000.0,0.00042998,120]
[399961021,1766945715741,-3000.0,0.00042998,120]
[399961022,1766945715898,-3000.0,0.00042998,120]
[399961023,1766945715926,-3000.0,0.00042998,120]
[399961024,1766945715955,-3000.0,0.00042998,120]
[399961025,1766945715982,-3000.0,0.00042998,120]
[399961026,1766945716010,-3000.0,0.00042998,120]
[399961027,1766945716037,-3000.0,0.00042998,120]
[399961028,1766945716063,-3000.0,0.00042998,120]
[399961029,1766945716089,-3000.0,0.00042998,120]
[399961030,1766945716117,-3000.0,0.00042998,120]
[399961031,1766945716146,-3000.0,0.00042998,120]
[399961032,1766945716174,-1119.0,0.00042998,120]
[399961033,1766945716203,-2553.44,0.00042998,120]
[399961034,1766945716232,-195.67070286,0.00042998,120]
[399961035,1766945716261,-3407.87092843,0.00042998,120]
[399961036,1766945716293,-1000.0,0.00042998,120]
[399961037,1766945716324,-1000.0,0.00042998,120]
[399961038,1766945716355,-536.26480205,0.00042998,120]
[399961039,1766945716384,-65000.0,0.00042998,120]
[399961040,1766945716414,-500.0,0.00042998,120]
[399961042,1766945907050,150.0,0.00030127,120]
[399961043,1766945908033,150.0,0.00030127,120]
[399961044,1766945909054,150.0,0.00030127,120]
[399961045,1766945912873,249.8869682,0.00030136,120]
[399961046,1766945919892,150.0,0.00030127,120]
[399961047,1766945921548,150.0,0.00030127,120]
[399961048,1766945922913,150.0,0.00030127,120]
[399961049,1766945923355,1009.10919697,0.00030127,120]
[399961050,1766945947123,500.0,0.00030136,120]
[399961051,1766945947373,500.0,0.00030136,120]
[399961052,1766945947607,500.0,0.00030136,120]
[399961053,1766945947867,261.55656389,0.00030136,120]
[399961054,1766945954088,272.87798356,0.00030136,120]
[399961055,1766945955261,500.0,0.00030136,120]
[399961056,1766945955502,454.38750899,0.00030136,120]
[399961057,1766945957109,295.85474167,0.00030136,120]
[399961058,1766945958767,500.0,0.00030136,120]
[399961059,1766945959015,500.0,0.00030136,120]
[399961060,1766945959257,500.0,0.00030136,120]
[399961061,1766945959523,500.0,0.00030136,120]
[399961062,1766945959761,500.0,0.00030136,120]
[399961063,1766945960000,500.0,0.00030136,120]
[399961064,1766945960371,500.0,0.00030136,120]
[399961065,1766945960487,500.0,0.00030136,120]
[399961066,1766945960841,500.0,0.00030136,120]
[399961067,1766945961077,422.81649256,0.00030136,120]
[399961068,1766945964171,408.5750632,0.00030136,120]
[399961069,1766945966652,223.76072873,0.00030136,120]
[399961070,1766945968981,180.97451243,0.00030136,120]
[399961071,1766945970747,500.0,0.00030136,120]
[399961072,1766945970992,428.48362685,0.00030136,120]
[399961073,1766945979236,292.36218544,0.00030136,120]
[399961074,1766945983962,417.81836658,0.00030136,120]
[399961075,1766945984051,749.0,0.0003013,120]
[399961076,1766945984847,1441.0,0.0003013,120]
[399961077,1766945985317,448.52736638,0.00030136,120]
[399961078,1766945985668,1510.0,0.0003013,120]
[399961079,1766945985698,159.37545751,0.00030136,120]
[399961080,1766945986441,748.0,0.0003013,120]
[399961094,1766945986832,500.0,0.00030136,120]
[399961104,1766945987062,500.0,0.00030136,120]
[399961109,1766945987247,500.0,0.0003013,120]
[399961110,1766945987312,500.0,0.00030136,120]
[399961111,1766945987370,366.61181035,0.00030136,120]
[399961117,1766945987525,508.8399144,0.00030136,120]
[399961140,1766945988086,1041.0,0.0003013,120]
[399961153,1766945988867,492.0,0.0003013,120]
[399961154,1766945989206,187.44299855,0.00030136,120]
[399961155,1766945989677,272.0,0.0003013,120]
[399961156,1766945989777,189.46900963,0.00030136,120]
[399961157,1766945990489,194.0,0.0003013,120]
[399961158,1766945991281,1761.0,0.0003013,120]
[399961159,1766945991353,350.24728118,0.00030136,120]
[399961160,1766945992075,331.0,0.0003013,120]
[399961161,1766945992868,622.0,0.0003013,120]
[399961162,1766945993246,500.0,0.00030136,120]
[399961163,1766945993501,500.0,0.00030136,120]
[399961164,1766945993651,792.0,0.0003013,120]
[399961165,1766945993754,500.0,0.00030136,120]
[399961166,1766945993983,500.0,0.00030136,120]
[399961167,1766945994210,500.0,0.00030136,120]
[399961168,1766945994442,1003.0,0.0003013,120]
[399961169,1766945994476,264.47050028,0.00030136,120]
[399961170,1766945995168,415.95423232,0.00030136,120]
[399961171,1766945995228,1236.0,0.0003013,120]
[399961172,1766945996023,1165.0,0.0003013,120]
[399961173,1766945996477,500.0,0.00030136,120]
[399961174,1766945996714,398.84034095,0.00030136,120]
[399961175,1766945996810,1021.0,0.0003013,120]
[399961176,1766945997600,451.0,0.0003013,120]
[399961177,1766945998387,989.0,0.0003013,120]
[399961178,1766945999286,1244.0,0.0003013,120]
[399961179,1766945999837,500.0,0.00030136,120]
[399961180,1766945999994,1455.0,0.0003013,120]
[399961181,1766946000073,636.3650348,0.00030136,120]
[399961182,1766946000811,729.0,0.0003013,120]
[399961183,1766946003139,231.86753081,0.00030136,120]
[399961184,1766946003604,3819.34,0.00030136,120]
[399961185,1766946003852,3819.34,0.00030136,120]
[399961186,1766946004152,413.0,0.0003013,120]
[399961187,1766946004239,3819.34,0.00030136,120]
[399961188,1766946004484,3819.34,0.00030136,120]
[399961189,1766946004716,3819.34,0.00030136,120]
[399961190,1766946004941,447.0,0.0003013,120]
[399961191,1766946004973,3819.34,0.00030136,120]
[399961192,1766946005209,3819.34,0.00030136,120]
[399961193,1766946005257,503.02449063,0.00030136,120]
[399961194,1766946005489,3819.34,0.00030136,120]
[399961195,1766946005726,3819.34,0.00030136,120]
[399961196,1766946005755,185.0,0.0003013,120]
[399961197,1766946006006,3819.34,0.00030136,120]
[399961198,1766946006263,3819.34,0.00030136,120]
[399961199,1766946006526,3819.34,0.00030136,120]
[399961200,1766946006557,267.0,0.0003013,120]
[399961201,1766946006792,3819.34,0.00030136,120]
[399961202,1766946007043,3819.34,0.00030136,120]
[399961203,1766946007275,3819.34,0.00030136,120]
[399961204,1766946007329,197.0,0.0003013,120]
[399961205,1766946007582,3819.34,0.00030136,120]
[399961206,1766946007811,3819.34,0.00030136,120]
[399961207,1766946007843,201.03846204,0.00030136,120]
[399961208,1766946008054,3819.34,0.00030136,120]
[399961209,1766946008128,264.0,0.0003013,120]
[399961210,1766946008313,3819.34,0.00030136,120]
[399961211,1766946008563,3819.34,0.00030136,120]
[399961212,1766946008798,3819.34,0.00030136,120]
[399961213,1766946008923,326.0,0.0003013,120]
[399961214,1766946009072,3819.34,0.00030136,120]
[399961215,1766946009298,3819.34,0.00030136,120]
[399961216,1766946009537,3819.44305472,0.00030136,120]
[399961217,1766946009714,250.0,0.0003013,120]
[399961218,1766946010535,437.0,0.0003013,120]
[399961219,1766946010882,403.60101392,0.00030136,120]
[399961220,1766946011323,201.77587847,0.00030136,120]
[399961221,1766946011359,379.0,0.0003013,120]
[399961222,1766946014695,155.76892005,0.00030136,120]
[399961223,1766946016675,513.37866061,0.00030136,120]
[399961224,1766946016707,295.01860777,0.00030136,120]
[399961225,1766946018772,500.0,0.00030136,120]
[399961226,1766946019116,500.0,0.00030136,120]
[399961227,1766946019354,500.0,0.00030136,120]
[399961228,1766946019580,500.0,0.00030136,120]
[399961229,1766946019808,276.68722698,0.00030136,120]
[399961230,1766946020829,198.87521736,0.00030136,120]
[399961231,1766946020912,407.5875969,0.00030136,120]
[399961232,1766946022388,311.27911172,0.00030136,120]
[399961233,1766946025971,384.23212093,0.00030136,120]
[399961234,1766946026183,416.45128041,0.00030136,120]
[399961235,1766946026542,397.18727075,0.00030136,120]
[399961236,1766946030561,3530.28063036,0.00030136,120]
[399961237,1766946032571,523.32466584,0.00030136,120]
[399961238,1766946034002,500.0,0.00030136,120]
[399961239,1766946034232,556.19010048,0.00030136,120]
[399961240,1766946035412,254.88682412,0.00030136,120]
[399961242,1766946037115,178.09235694,0.00030136,120]
[399961256,1766946040341,475.52861536,0.00030136,120]
[399961264,1766946042046,160.21773808,0.00030136,120]
[399961268,1766946042855,417.30096394,0.00030136,120]
[399961269,1766946043764,344.0,0.0003013,120]
[399961270,1766946044544,303.0,0.0003013,120]
[399961271,1766946044635,459.24164895,0.00030136,120]
[399961272,1766946044716,155.62062559,0.00030136,120]
[399961273,1766946044747,500.0,0.00030136,120]
[399961274,1766946044984,363.80524662,0.00030136,120]
[399961275,1766946045320,1153.0,0.0003013,120]
[399961276,1766946045811,256.98606338,0.00030136,120]
[399961277,1766946046128,1122.0,0.0003013,120]
[399961278,1766946046504,507.21587468,0.00030136,120]
[399961279,1766946047034,1541.0,0.0003013,120]
[399961280,1766946047541,408.07642773,0.00030136,120]
[399961281,1766946047862,186.0,0.0003013,120]
[399961282,1766946048679,430.0,0.0003013,120]
[399961283,1766946049419,211.84373,0.00030136,120]
[399961284,1766946049455,915.0,0.0003013,120]
[399961285,1766946050238,660.0,0.0003013,120]
[399961286,1766946051020,258.0,0.0003013,120]
[399961287,1766946051462,189.74556134,0.00030136,120]
[399961288,1766946051822,424.0,0.0003013,120]
[399961289,1766946052231,406.13346072,0.00030136,120]
[399961290,1766946052609,905.0,0.0003013,120]
[399961291,1766946056090,235.0,0.0003013,120]
[399961293,1766946056342,164.70783217,0.00030136,120]
[399961297,1766946056866,497.0,0.0003013,120]
[399961302,1766946057650,159.0,0.0003013,120]
[399961304,1766946057942,500.0,0.00030136,120]
[399961306,1766946058186,393.41193628,0.00030136,120]
[399961312,1766946059473,436.90778625,0.00030136,120]
[399961323,1766946061893,255.67561444,0.00030136,120]
[399961324,1766946063631,190.86866065,0.00030136,120]
[399961325,1766946064142,350.76414297,0.00030136,120]
[399961326,1766946066222,246.98624194,0.00030136,120]
[399961327,1766946067893,426.86833834,0.00030136,120]
[399961328,1766946068127,500.0,0.00030136,120]
[399961329,1766946068390,170.63315657,0.00030136,120]
[399961330,1766946069800,608.02411903,0.00030136,120]
[399961331,1766946071743,178.54601372,0.00030136,120]
[399961332,1766946072009,474.37397022,0.00030136,120]
[399961333,1766946078126,500.0,0.00030136,120]
[399961334,1766946078241,428.70887664,0.00030136,120]
[399961335,1766946078275,203.37318774,0.00030136,120]
[399961336,1766946078371,385.54883637,0.00030136,120]
[399961344,1766946084818,500.0,0.00030136,120]
[399961345,1766946085089,500.0,0.00030136,120]
[399961346,1766946085534,500.0,0.00030136,120]
[399961347,1766946085640,500.0,0.00030136,120]
[399961348,1766946085778,500.0,0.00030136,120]
[399961349,1766946085911,500.0,0.00030136,120]
[399961350,1766946086064,500.0,0.00030136,120]
[399961351,1766946086137,500.0,0.00030136,120]
[399961352,1766946086168,6197.62179637,0.00030137,120]
[399961353,1766946086296,450.95027262,0.00030136,120]
[399961354,1766946086413,500.0,0.00030136,120]
[399961355,1766946086509,500.0,0.00030136,120]
[399961356,1766946086645,500.0,0.00030136,120]
[399961357,1766946086744,159.51601707,0.00030136,120]
[399961358,1766946086889,500.0,0.00030136,120]
[399961359,1766946087245,500.0,0.00030136,120]
[399961360,1766946087483,472.28748792,0.00030136,120]
[399961364,1766946091381,204.0,0.0003013,120]
[399961365,1766946091710,491.41917401,0.00030136,120]
[399961366,1766946091820,178.89258352,0.00030136,120]
[399961376,1766946103804,1990.0,0.0003013,120]
[399961377,1766946104635,223.86835906,0.00030136,120]
[399961378,1766946104672,190.63960634,0.00030136,120]
[399961379,1766946104713,436.0,0.0003013,120]
[399961382,1766946105512,471.0,0.0003013,120]
[399961383,1766946106343,1338.0,0.0003013,120]
[399961384,1766946106756,178.65738891,0.00030136,120]
[399961385,1766946107197,545.0,0.0003013,120]
[399961386,1766946108088,1611.0,0.0003013,120]
[399961387,1766946108494,217.51385196,0.00030136,120]
[399961389,1766946108741,299.43546742,0.00030136,120]
[399961390,1766946108935,1943.0,0.0003013,120]
[399961392,1766946109837,744.0,0.0003013,120]
[399961395,1766946111299,178.15797028,0.00030136,120]
[399961398,1766946112446,478.93540389,0.0003013,120]
[399961399,1766946112693,-201.55569415,0.00013442,2]
[399961400,1766946113151,216.07729602,0.00030136,120]
[399961403,1766946114913,265.72128077,0.00030136,120]
[399961404,1766946115434,-222.68249,0.00013442,2]
[399961405,1766946115476,398.75050348,0.00030136,120]
[399961408,1766946117262,191.67634317,0.00030136,120]
[399961409,1766946118294,560.02959712,0.00030136,120]
[399961410,1766946118370,500.0,0.00030136,120]
[399961411,1766946118617,408.6494441,0.00030136,120]
[399961417,1766946123131,500.0,0.00030136,120]
[399961418,1766946123370,269.20514305,0.00030136,120]
[399961422,1766946125713,413.4412223,0.00030136,120]
[399961424,1766946125984,400.0,0.00030136,120]
[399961431,1766946130724,500.0,0.00030136,120]
[399961433,1766946130933,211.87818919,0.00030136,120]
[399961439,1766946133857,298.4449422,0.00030136,120]
[399961443,1766946138685,158.59535967,0.00030136,120]
[399961444,1766946138755,500.0,0.00030136,120]
[399961445,1766946138987,164.53695788,0.00030136,120]
[399961446,1766946139773,415.29239669,0.00030136,120]
[399961449,1766946142488,585.02071227,0.00030136,120]
[399961451,1766946144436,435.83912678,0.00030136,120]